fUST/lending_fUST_20250323
["ID","MTS","AMOUNT","RATE_DAILY","PERIOD"]
[356572767,1742697043852,-505.11,0.00021917,2]
[356572769,1742697043862,-2284.97,0.00021917,2]
[356572770,1742697043871,-500.0,0.00021917,2]
[356572772,1742697043880,-500.0,0.00021917,2]
[356572773,1742697043890,-514.39691217,0.00021917,2]
[356572774,1742697043899,-1523.51,0.00021917,2]
[356572775,1742697043908,-512.19777203,0.00021917,2]
[356572776,1742697043917,-519.766313,0.00021917,2]
[356572777,1742697043926,-519.766313,0.00021917,2]
[356572778,1742697043936,-4331.88,0.00021917,2]
[356572779,1742697043945,-858.64,0.00021917,2]
[356572780,1742697043954,-500.0,0.00021917,2]
[356572781,1742697043963,-519.766313,0.00021917,2]
[356572782,1742697043972,-519.766313,0.00021917,2]
[356572783,1742697043981,-544.15361952,0.00021917,2]
[356572784,1742697043996,-516.62010911,0.00021917,2]
[356572785,1742697044005,-159.51399974,0.00021917,2]
[356572786,1742697044015,-576.71,0.00021917,2]
[356572787,1742697044024,-943.32,0.00021917,2]
[356572788,1742697044035,-500.0,0.00021917,2]
[356572789,1742697044045,-1040.79,0.00021917,2]
[356572790,1742697044054,-500.0,0.00021917,2]
[356572791,1742697044064,-500.0,0.00021917,2]
[356572792,1742697044074,-520.69041151,0.00021917,2]
[356572793,1742697044083,-373.99671528,0.00021917,2]
[356572794,1742697045530,-234.23243574,0.00021917,2]
[356572795,1742697045965,-164.3612614,0.00021917,2]
[356572801,1742697046400,-253.31569525,0.00021917,2]
[356572802,1742697046412,-972.65693177,0.00021917,2]
[356572804,1742697046655,-23.61605845,0.00021917,2]
[356572805,1742697046712,-39.26325081,0.00021917,2]
[356572810,1742697513260,-208.30949799,0.000181,2]
[356572813,1742697731235,168.510265,0.00010959,2]
[356572816,1742698041133,-466.95019628,0.0001822,2]
[356572817,1742698150182,-98.96375734,0.0001822,2]
[356572818,1742698150204,-500.0,0.0001822,2]
[356572819,1742698150226,-661.83901389,0.0001822,2]
[356572820,1742698150246,-4.49673091,0.00018978,2]
[356572821,1742698154079,-245.50326909,0.00018978,2]
[356572822,1742698154101,-2885.04308267,0.00019821,2]
[356572823,1742698154123,-500.0,0.0001992,2]
[356572824,1742698154144,-153.20003078,0.0001992,2]
[356572825,1742698154167,-396.30432916,0.0001992,2]
[356572826,1742698154199,-3607.69964365,0.0001992,2]
[356572827,1742698154219,-500.0,0.0001992,2]
[356572828,1742698154241,-500.0,0.0001992,2]
[356572829,1742698154265,-3607.69964365,0.0001992,2]
[356572830,1742698154287,-500.0,0.0001992,2]
[356572831,1742698154310,-3607.69964365,0.0001992,2]
[356572832,1742698154331,-500.0,0.0001992,2]
[356572833,1742698154352,-500.0,0.0001992,2]
[356572834,1742698154374,-3607.69964365,0.0001992,2]
[356572835,1742698154396,-500.0,0.0001992,2]
[356572836,1742698154417,-500.0,0.0001992,2]
[356572837,1742698154438,-3607.69964365,0.0001992,2]
[356572838,1742698154460,-204.93950662,0.0001992,2]
[356572839,1742698154488,-3607.69964365,0.0001992,2]
[356572840,1742698154514,-241.46523648,0.0001992,2]
[356572841,1742698154541,-500.0,0.0001992,2]
[356572842,1742698154568,-3607.69964365,0.0001992,2]
[356572843,1742698154595,-3607.69964365,0.0001992,2]
[356572844,1742698154620,-500.0,0.0001992,2]
[356572845,1742698154648,-3607.69964365,0.0001992,2]
[356572846,1742698154675,-219.67071939,0.0001992,2]
[356572850,1742698157096,-3388.02892426,0.0001992,2]
[356572851,1742698157122,-3607.69964365,0.0001992,2]
[356572852,1742698157147,-500.0,0.0001992,2]
[356572853,1742698157173,-3607.69964365,0.0001992,2]
[356572854,1742698157200,-500.0,0.0001992,2]
[356572855,1742698157225,-3607.69964365,0.0001992,2]
[356572856,1742698157251,-500.0,0.0001992,2]
[356572857,1742698157277,-3607.69964365,0.0001992,2]
[356572858,1742698157303,-500.0,0.0001992,2]
[356572859,1742698157329,-3607.69964365,0.0001992,2]
[356572860,1742698157355,-830.84096866,0.0001992,2]
[356572861,1742698161118,-2589.55602921,0.0001992,2]
[356572862,1742698161158,-187.30264578,0.0001992,2]
[356572863,1742698161183,-500.0,0.0001992,2]
[356572864,1742698161207,-500.0,0.0001992,2]
[356572865,1742698161229,-500.0,0.0001992,2]
[356572866,1742698161252,-500.0,0.0001992,2]
[356572867,1742698161274,-3607.69964365,0.0001992,2]
[356572868,1742698161298,-110.75616263,0.0001992,2]
[356572869,1742698162295,-3496.94348102,0.0001992,2]
[356572870,1742698162323,-500.0,0.0001992,2]
[356572871,1742698162350,-3607.69964365,0.0001992,2]
[356572872,1742698162377,-3607.69964365,0.0001992,2]
[356572873,1742698162404,-3607.69964365,0.0001992,2]
[356572874,1742698162430,-3607.69964365,0.0001992,2]
[356572875,1742698162455,-3607.69964365,0.0001992,2]
[356572876,1742698162480,-3607.69964365,0.0001992,2]
[356572877,1742698162506,-3607.69964365,0.0001992,2]
[356572878,1742698162535,-3607.69964365,0.0001992,2]
[356572879,1742698162565,-3607.69964365,0.0001992,2]
[356572880,1742698162589,-3607.69964365,0.0001992,2]
[356572881,1742698162616,-3607.69964365,0.0001992,2]
[356572882,1742698162644,-3607.69964365,0.0001992,2]
[356572883,1742698162676,-3607.69964365,0.0001992,2]
[356572884,1742698162703,-3607.69964365,0.0001992,2]
[356572885,1742698162730,-3607.69964365,0.0001992,2]
[356572886,1742698162757,-3607.69964365,0.0001992,2]
[356572887,1742698162786,-3607.69964365,0.0001992,2]
[356572888,1742698162814,-3607.69964365,0.0001992,2]
[356572889,1742698162841,-3607.69964365,0.0001992,2]
[356572890,1742698162868,-3607.69964365,0.0001992,2]
[356572891,1742698162895,-3607.69964365,0.0001992,2]
[356572892,1742698162922,-3607.69964365,0.0001992,2]
[356572893,1742698162949,-3607.69964365,0.0001992,2]
[356572894,1742698162975,-3607.69964365,0.0001992,2]
[356572895,1742698163001,-3607.69964365,0.0001992,2]
[356572896,1742698163027,-3607.69964365,0.0001992,2]
[356572897,1742698163053,-3607.69964365,0.0001992,2]
[356572898,1742698163079,-3607.69964365,0.0001992,2]
[356572899,1742698163104,-3607.69964365,0.0001992,2]
[356572900,1742698163130,-3607.69964365,0.0001992,2]
[356572901,1742698163155,-3607.69964365,0.0001992,2]
[356572902,1742698163183,-3607.69964365,0.0001992,2]
[356572903,1742698163208,-3607.69964365,0.0001992,2]
[356572904,1742698163234,-3607.69964365,0.0001992,2]
[356572905,1742698163260,-3607.69964365,0.0001992,2]
[356572906,1742698163288,-3607.69964365,0.0001992,2]
[356572907,1742698163313,-3607.69964365,0.0001992,2]
[356572908,1742698163338,-3607.69964365,0.0001992,2]
[356572909,1742698163363,-1892.16310013,0.0001992,2]
[356572910,1742698174135,-1715.53654352,0.0001992,2]
[356572911,1742698174159,-3607.69964365,0.0001992,2]
[356572912,1742698174184,-3561.1486805,0.0001992,2]
[356572913,1742698174208,-3561.1486805,0.0001992,2]
[356572914,1742698174232,-3561.1486805,0.0001992,2]
[356572915,1742698174256,-3561.1486805,0.0001992,2]
[356572916,1742698174280,-3561.1486805,0.0001992,2]
[356572917,1742698174302,-3561.1486805,0.0001992,2]
[356572918,1742698174325,-3561.1486805,0.0001992,2]
[356572919,1742698174347,-3561.1486805,0.0001992,2]
[356572920,1742698174370,-3561.1486805,0.0001992,2]
[356572921,1742698174392,-3561.1486805,0.0001992,2]
[356572922,1742698174415,-3561.1486805,0.0001992,2]
[356572923,1742698174437,-3561.1486805,0.0001992,2]
[356572924,1742698174459,-3561.1486805,0.0001992,2]
[356572925,1742698174481,-3561.1486805,0.0001992,2]
[356572926,1742698174504,-3561.1486805,0.0001992,2]
[356572927,1742698174527,-3561.1486805,0.0001992,2]
[356572928,1742698174550,-3561.1486805,0.0001992,2]
[356572929,1742698174579,-3561.1486805,0.0001992,2]
[356572930,1742698174603,-3561.1486805,0.0001992,2]
[356572931,1742698174627,-3561.1486805,0.0001992,2]
[356572932,1742698174651,-3561.1486805,0.0001992,2]
[356572933,1742698174674,-3561.1486805,0.0001992,2]
[356572934,1742698174696,-3561.1486805,0.0001992,2]
[356572935,1742698174719,-3561.1486805,0.0001992,2]
[356572936,1742698174741,-3561.1486805,0.0001992,2]
[356572937,1742698174763,-3561.1486805,0.0001992,2]
[356572938,1742698174784,-3561.1486805,0.0001992,2]
[356572939,1742698174807,-3561.1486805,0.0001992,2]
[356572940,1742698174830,-3561.1486805,0.0001992,2]
[356572941,1742698174853,-3561.1486805,0.0001992,2]
[356572942,1742698174875,-3561.14868041,0.0001992,2]
[356572943,1742698174899,-4127.65305841,0.0001992,2]
[356572944,1742698174922,-500.0,0.00019922,2]
[356572945,1742698174946,-24900.0,0.00019924,2]
[356572946,1742698174966,-500.0,0.0002,2]
[356572947,1742698174988,-160.11944597,0.0002,2]
[356572948,1742698175012,-506.30080193,0.0002,2]
[356572949,1742698175033,-500.0,0.0002,2]
[356572950,1742698175054,-500.0,0.0002,2]
[356572951,1742698175075,-500.0,0.0002,2]
[356572952,1742698175096,-500.0,0.0002,2]
[356572953,1742698175117,-500.0,0.0002,2]
[356572954,1742698175139,-500.0,0.0002,2]
[356572955,1742698175159,-500.0,0.0002,2]
[356572956,1742698175180,-500.0,0.0002,2]
[356572957,1742698175206,-500.0,0.0002,2]
[356572958,1742698175226,-500.0,0.0002,2]
[356572960,1742698175247,-500.0,0.0002,2]
[356572962,1742698175269,-500.0,0.0002,2]
[356572963,1742698175290,-500.0,0.0002,2]
[356572964,1742698175312,-1158.8363,0.00020064,2]
[356572965,1742698175333,-500.0,0.00020196,2]
[356572966,1742698175355,-3580.31271523,0.00020316,2]
[356572967,1742698175375,-500.0,0.0002047,2]
[356572968,1742698175396,-1685.0510408,0.00020548,2]
[356572969,1742698175418,-2885.04308263,0.00020654,2]
[356572970,1742698175438,-500.0,0.00020744,2]
[356572971,1742698175459,-178.9976,0.00020798,2]
[356572972,1742698175480,-4311.54722528,0.00021,120]
[356572973,1742698175503,-500.0,0.00021018,2]
[356572974,1742698175523,-507.64874655,0.00021292,2]
[356572975,1742698175543,-151.1807645,0.00021426,2]
[356572976,1742698175566,-1567.49398673,0.00021487,2]
[356573026,1742698232789,-500.0,0.0002,2]
[356573027,1742698232798,-500.0,0.0002,2]
[356573028,1742698232807,-500.0,0.0002,2]
[356573029,1742698232817,-500.0,0.0002,2]
[356573030,1742698232826,-500.0,0.0002,2]
[356573031,1742698232835,-300.0,0.00021799,2]
[356573032,1742698232845,-8140.52279745,0.000218,3]
[356573033,1742698232854,-52313.88157212,0.000218,3]
[356573034,1742698232864,-160.0,0.000218,3]
[356573035,1742698232873,-12458.93820146,0.000218,3]
[356573036,1742698232882,-834.51197368,0.000218,3]
[356573037,1742698232892,-500.0,0.00021917,2]
[356573038,1742698232901,-500.0,0.00021917,2]
[356573039,1742698232910,-500.0,0.00021917,2]
[356573040,1742698232920,-500.0,0.00021917,2]
[356573041,1742698232930,-500.0,0.00021917,2]
[356573042,1742698232939,-500.0,0.00021917,2]
[356573043,1742698232948,-500.0,0.00021917,2]
[356573044,1742698232957,-344.32950053,0.00021917,2]
[356573045,1742698232967,-500.0,0.00021917,2]
[356573046,1742698232976,-500.0,0.00021917,2]
[356573047,1742698232985,-500.0,0.00021917,2]
[356573048,1742698232995,-500.0,0.00021917,2]
[356573049,1742698233005,-500.0,0.00021917,2]
[356573050,1742698233014,-500.0,0.00021917,2]
[356573051,1742698233023,-624.8,0.00021917,2]
[356573052,1742698233033,-249.7040122,0.00021917,2]
[356573053,1742698233043,-814.78,0.00021917,2]
[356573054,1742698233053,-500.0,0.00021917,2]
[356573055,1742698233062,-500.0,0.00021917,2]
[356573056,1742698233072,-500.0,0.00021917,2]
[356573057,1742698233082,-500.0,0.00021917,2]
[356573058,1742698233092,-597.77,0.00021917,2]
[356573059,1742698233101,-500.0,0.00021917,2]
[356573060,1742698233112,-500.0,0.00021917,2]
[356573061,1742698233122,-649.55,0.00021917,2]
[356573062,1742698233132,-500.0,0.00021917,2]
[356573063,1742698233141,-961.44,0.00021917,2]
[356573064,1742698233151,-500.0,0.00021917,2]
[356573065,1742698233161,-500.0,0.00021917,2]
[356573066,1742698233171,-500.0,0.00021917,2]
[356573067,1742698233181,-548.29666224,0.00021917,2]
[356573068,1742698233191,-500.0,0.00021917,2]
[356573069,1742698233200,-1411.82,0.00021917,2]
[356573070,1742698233210,-500.0,0.00021917,2]
[356573071,1742698233220,-593.33,0.00021917,2]
[356573072,1742698233229,-704.97,0.00021917,2]
[356573073,1742698233238,-554.17,0.00021917,2]
[356573074,1742698233248,-732.61,0.00021917,2]
[356573075,1742698233257,-951.36,0.00021917,2]
[356573076,1742698233267,-945.68,0.00021917,2]
[356573077,1742698233276,-574.14,0.00021917,2]
[356573078,1742698233286,-500.0,0.00021917,2]
[356573079,1742698233295,-500.0,0.00021917,2]
[356573080,1742698233304,-50.57875471,0.00021917,2]
[356573081,1742698233319,-449.42124529,0.00021917,2]
[356573082,1742698233329,-684.99,0.00021917,2]
[356573083,1742698233338,-500.0,0.00021917,2]
[356573084,1742698233348,-500.0,0.00021917,2]
[356573085,1742698233357,-644.13,0.00021917,2]
[356573086,1742698233367,-500.0,0.00021917,2]
[356573087,1742698233376,-500.0,0.00021917,2]
[356573088,1742698233386,-500.0,0.00021917,2]
[356573089,1742698233396,-793.29,0.00021917,2]
[356573090,1742698233406,-500.0,0.00021917,2]
[356573091,1742698233415,-500.0,0.00021917,2]
[356573092,1742698233425,-500.0,0.00021917,2]
[356573093,1742698233435,-500.0,0.00021917,2]
[356573094,1742698233444,-500.0,0.00021917,2]
[356573095,1742698233454,-500.0,0.00021917,2]
[356573096,1742698233463,-500.0,0.00021917,2]
[356573097,1742698233473,-500.0,0.00021917,2]
[356573098,1742698233482,-500.0,0.00021917,2]
[356573099,1742698233492,-500.0,0.00021917,2]
[356573100,1742698233501,-500.0,0.00021917,2]
[356573101,1742698233512,-988.51,0.00021917,2]
[356573102,1742698233521,-500.0,0.00021917,2]
[356573103,1742698233530,-500.0,0.00021917,2]
[356573104,1742698233540,-634.29,0.00021917,2]
[356573105,1742698233560,-527.72,0.00021917,2]
[356573106,1742698233572,-500.0,0.00021917,2]
[356573107,1742698233583,-617.17,0.00021917,2]
[356573108,1742698233594,-500.0,0.00021917,2]
[356573109,1742698233609,-582.88,0.00021917,2]
[356573110,1742698233619,-500.0,0.00021917,2]
[356573111,1742698233630,-866.24,0.00021917,2]
[356573112,1742698233641,-500.0,0.00021917,2]
[356573113,1742698233651,-1714.68,0.00021917,2]
[356573114,1742698233662,-500.0,0.00021917,2]
[356573115,1742698233672,-500.0,0.00021917,2]
[356573116,1742698233682,-500.0,0.00021917,2]
[356573117,1742698233693,-769.86,0.00021917,2]
[356573118,1742698233703,-500.0,0.00021917,2]
[356573119,1742698233713,-500.0,0.00021917,2]
[356573120,1742698233723,-500.0,0.00021917,2]
[356573121,1742698233733,-1979.57,0.00021917,2]
[356573122,1742698233743,-997.24,0.00021917,2]
[356573123,1742698233753,-1903.83,0.00021917,2]
[356573124,1742698233763,-500.0,0.00021917,2]
[356573125,1742698233773,-545.61,0.00021917,2]
[356573126,1742698233782,-500.0,0.00021917,2]
[356573127,1742698233792,-691.52,0.00021917,2]
[356573128,1742698233802,-124.32875367,0.00021917,2]
[356573135,1742698238473,-500.0,0.00021799,2]
[356573136,1742698238483,-500.0,0.00021799,2]
[356573137,1742698238493,-193.49613739,0.00021799,2]
[356573138,1742698238503,-500.0,0.00021799,2]
[356573139,1742698238513,-499.42970352,0.00021799,2]
[356573140,1742698238522,-356.10438962,0.00021799,2]
[356573141,1742698238531,-500.0,0.00021799,2]
[356573142,1742698238541,-500.0,0.00021799,2]
[356573143,1742698238550,-500.0,0.00021799,2]
[356573144,1742698238559,-361.36498955,0.00021799,2]
[356573145,1742698238571,-138.63501045,0.00021799,2]
[356573146,1742698238580,-500.0,0.00021799,2]
[356573147,1742698238590,-500.0,0.00021799,2]
[356573148,1742698238603,-500.0,0.00021799,2]
[356573149,1742698238612,-500.0,0.00021799,2]
[356573150,1742698238621,-500.0,0.00021799,2]
[356573151,1742698238630,-500.0,0.00021799,2]
[356573152,1742698238639,-500.0,0.00021799,2]
[356573153,1742698238651,-500.0,0.00021799,2]
[356573154,1742698238661,-500.0,0.00021799,2]
[356573155,1742698238671,-500.0,0.00021799,2]
[356573156,1742698238681,-500.0,0.00021799,2]
[356573157,1742698238691,-500.0,0.00021799,2]
[356573158,1742698238700,-500.0,0.00021799,2]
[356573159,1742698238709,-500.0,0.00021799,2]
[356573160,1742698238718,-500.0,0.00021799,2]
[356573161,1742698238728,-500.0,0.00021799,2]
[356573162,1742698238737,-500.0,0.00021799,2]
[356573163,1742698238746,-500.0,0.00021799,2]
[356573164,1742698238755,-500.0,0.00021799,2]
[356573165,1742698238764,-500.0,0.00021799,2]
[356573166,1742698238775,-500.0,0.00021799,2]
[356573167,1742698238784,-500.0,0.00021799,2]
[356573168,1742698238793,-418.72491515,0.00021799,2]
[356573169,1742698238808,-81.27508485,0.00021799,2]
[356573170,1742698238819,-500.0,0.00021799,2]
[356573171,1742698238828,-500.0,0.00021799,2]
[356573172,1742698238839,-500.0,0.00021799,2]
[356573173,1742698238848,-500.0,0.00021799,2]
[356573174,1742698238857,-500.0,0.00021799,2]
[356573175,1742698238866,-500.0,0.00021799,2]
[356573176,1742698238876,-500.0,0.00021799,2]
[356573177,1742698238885,-500.0,0.00021799,2]
[356573178,1742698238894,-500.0,0.00021799,2]
[356573179,1742698238903,-500.0,0.00021799,2]
[356573180,1742698238912,-500.0,0.00021799,2]
[356573181,1742698238921,-500.0,0.00021799,2]
[356573182,1742698238931,-564.35677779,0.00021799,2]
[356573183,1742698238940,-500.0,0.00021799,2]
[356573184,1742698238951,-500.0,0.00021799,2]
[356573185,1742698238960,-319.43785082,0.00021799,2]
[356573186,1742698239627,-180.56214918,0.00021799,2]
[356573187,1742698239636,-500.0,0.00021799,2]
[356573188,1742698239646,-500.0,0.00021799,2]
[356573189,1742698239655,-500.0,0.00021799,2]
[356573190,1742698239664,-500.0,0.00021799,2]
[356573191,1742698239673,-500.0,0.00021799,2]
[356573192,1742698239682,-500.0,0.00021799,2]
[356573193,1742698239692,-500.0,0.00021799,2]
[356573194,1742698239701,-500.0,0.00021799,2]
[356573195,1742698239710,-375.67124633,0.00021917,2]
[356573196,1742698239720,-500.0,0.00021917,2]
[356573197,1742698239729,-1115.69,0.00021917,2]
[356573198,1742698239738,-500.0,0.00021917,2]
[356573199,1742698239747,-2000.0,0.00021917,2]
[356573200,1742698239756,-550.34010052,0.00021917,2]
[356573201,1742698239765,-528.07318722,0.00021917,2]
[356573202,1742698239775,-500.0,0.00021917,2]
[356573203,1742698239784,-500.0,0.00021917,2]
[356573204,1742698239794,-1497.98,0.00021917,2]
[356573205,1742698239804,-500.0,0.00021917,2]
[356573206,1742698239813,-685.97,0.00021917,2]
[356573207,1742698239822,-1260.63,0.00021917,2]
[356573208,1742698239831,-904.02,0.00021917,2]
[356573209,1742698239840,-671.44,0.00021917,2]
[356573210,1742698239850,-500.0,0.00021917,2]
[356573211,1742698239859,-500.0,0.00021917,2]
[356573212,1742698239868,-500.0,0.00021917,2]
[356573213,1742698239877,-511.18442655,0.00021917,2]
[356573214,1742698239887,-514.26197025,0.00021917,2]
[356573215,1742698239896,-629.21,0.00021917,2]
[356573216,1742698239905,-606.79,0.00021917,2]
[356573217,1742698239915,-518.18057378,0.00021917,2]
[356573218,1742698239924,-2379.35,0.00021917,2]
[356573219,1742698239933,-502.75789994,0.00021917,2]
[356573220,1742698239942,-887.08,0.00021917,2]
[356573221,1742698239952,-500.0,0.00021917,2]
[356573222,1742698239961,-88.7555179,0.00021917,2]
[356573223,1742698239978,-411.2444821,0.00021917,2]
[356573224,1742698239988,-500.0,0.00021917,2]
[356573225,1742698239997,-522.5807774,0.00021917,2]
[356573226,1742698240006,-514.3116814,0.00021917,2]
[356573227,1742698240016,-527.56451986,0.00021917,2]
[356573228,1742698240026,-1415.28,0.00021917,2]
[356573229,1742698240035,-363.00405431,0.00021917,2]
[356573230,1742698240044,-500.0,0.00021917,2]
[356573231,1742698240053,-500.0,0.00021917,2]
[356573232,1742698240062,-177.75920177,0.00021917,2]
[356573233,1742698240071,-500.0,0.00021917,2]
[356573234,1742698240081,-500.0,0.00021917,2]
[356573235,1742698240090,-1360.36,0.00021917,2]
[356573236,1742698240100,-943.1,0.00021917,2]
[356573237,1742698240110,-680.73,0.00021917,2]
[356573238,1742698240118,-500.0,0.00021917,2]
[356573239,1742698240128,-670.89,0.00021917,2]
[356573240,1742698240137,-525.4,0.00021917,2]
[356573241,1742698240147,-542.23,0.00021917,2]
[356573242,1742698240156,-691.42,0.00021917,2]
[356573243,1742698240166,-500.0,0.00021917,2]
[356573244,1742698240175,-500.0,0.00021917,2]
[356573245,1742698240184,-500.0,0.00021917,2]
[356573246,1742698240194,-1682.51,0.00021917,2]
[356573247,1742698240203,-500.0,0.00021917,2]
[356573248,1742698240213,-500.0,0.00021917,2]
[356573249,1742698240223,-500.0,0.00021917,2]
[356573250,1742698240232,-500.0,0.00021917,2]
[356573251,1742698240242,-852.01,0.00021917,2]
[356573252,1742698240251,-192.40186978,0.00021917,2]
[356573253,1742698240263,-330.64813022,0.00021917,2]
[356573254,1742698240273,-304.25501777,0.00021917,2]
[356573255,1742698240285,-782.65498223,0.00021917,2]
[356573256,1742698240294,-641.05562953,0.00021917,2]
[356573257,1742698240303,-500.0,0.00021917,2]
[356573258,1742698240313,-500.0,0.00021917,2]
[356573259,1742698240322,-500.0,0.00021917,2]
[356573260,1742698240331,-500.0,0.00021917,2]
[356573261,1742698240341,-358.79440079,0.00021917,2]
[356573262,1742698240353,-315.88559921,0.00021917,2]
[356573263,1742698240362,-500.0,0.00021917,2]
[356573264,1742698240371,-567.74,0.00021917,2]
[356573265,1742698240381,-1532.64,0.00021917,2]
[356573266,1742698240391,-500.0,0.00021917,2]
[356573267,1742698240400,-2387.18,0.00021917,2]
[356573268,1742698240409,-500.0,0.00021917,2]
[356573269,1742698240419,-512.06053282,0.00021917,2]
[356573270,1742698240428,-155.37346888,0.00021917,2]
[356573302,1742698243731,-643.95653112,0.00021917,2]
[356573303,1742698243741,-1361.27,0.00021917,2]
[356573304,1742698243750,-870.8,0.00021917,2]
[356573305,1742698243760,-2978.65,0.00021917,2]
[356573306,1742698243770,-89.02048333,0.00021917,2]
[356573322,1742698244209,-300.0,0.00021917,2]
[356573365,1742698246719,-110.97951667,0.00021917,2]
[356573367,1742698246728,-740.64615846,0.00021917,2]
[356573487,1742698761774,172.587352,0.00010959,2]
[356573488,1742699132149,-768.03838103,0.00019162,2]
[356573489,1742699138120,-292.21173445,0.00019162,2]
[356573490,1742699227140,-250.0,0.00019073,2]
[356573491,1742699227167,-1123.49649735,0.00019162,2]
[356573492,1742699346111,-3442.41937493,0.0001897,2]
[356573493,1742699346134,-628.0,0.00019162,2]
[356573494,1742699346155,-2371.7373964,0.00019212,2]
[356573495,1742699346177,-519.9485615,0.00019356,2]
[356573496,1742699346198,-1784.741887,0.00019553,2]
[356573497,1742699346220,-300.0,0.00020109,2]
[356573498,1742699346242,-2101.54098877,0.0002011,2]
[356573503,1742699356107,-146.89510379,0.0002011,2]
[356573504,1742699356130,-220.57577833,0.00020116,2]
[356573505,1742699356151,-371.02260954,0.000202,2]
[356573506,1742699356173,-508.78985612,0.00020209,2]
[356573507,1742699356196,-500.0,0.00020209,2]
[356573508,1742699356219,-500.0,0.00020209,2]
[356573509,1742699356239,-399.50841706,0.00020209,2]
[356573510,1742699356262,-500.0,0.00020209,2]
[356573511,1742699356284,-633.65360944,0.00020209,2]
[356573512,1742699356307,-500.0,0.00020209,2]
[356573513,1742699356329,-500.0,0.00020209,2]
[356573514,1742699356352,-500.0,0.00020209,2]
[356573515,1742699356374,-500.0,0.00020209,2]
[356573516,1742699356397,-500.0,0.00020209,2]
[356573517,1742699356419,-500.0,0.00020209,2]
[356573518,1742699356441,-500.0,0.00020209,2]
[356573519,1742699356463,-500.0,0.00020209,2]
[356573520,1742699356486,-500.0,0.00020209,2]
[356573521,1742699356509,-500.0,0.00020209,2]
[356573522,1742699356531,-500.0,0.00020209,2]
[356573523,1742699356553,-500.0,0.00020209,2]
[356573524,1742699356575,-500.0,0.00020209,2]
[356573525,1742699356597,-500.0,0.00020209,2]
[356573526,1742699356621,-500.0,0.00020209,2]
[356573527,1742699356642,-500.0,0.00020209,2]
[356573528,1742699356664,-500.0,0.00020209,2]
[356573529,1742699356693,-500.0,0.00020209,2]
[356573530,1742699356715,-500.0,0.00020209,2]
[356573531,1742699356738,-500.0,0.00020209,2]
[356573532,1742699356760,-500.0,0.00020209,2]
[356573533,1742699356782,-500.0,0.00020209,2]
[356573534,1742699356804,-500.0,0.00020209,2]
[356573535,1742699356826,-500.0,0.00020209,2]
[356573536,1742699356848,-500.0,0.00020209,2]
[356573537,1742699356874,-500.0,0.00020209,2]
[356573538,1742699356896,-500.0,0.00020209,2]
[356573539,1742699356919,-500.0,0.00020209,2]
[356573540,1742699356941,-500.0,0.00020209,2]
[356573541,1742699356964,-427.63651585,0.00020209,2]
[356573542,1742699356987,-500.0,0.00020209,2]
[356573543,1742699357009,-500.0,0.00020209,2]
[356573544,1742699357031,-500.0,0.00020209,2]
[356573545,1742699357053,-500.0,0.00020209,2]
[356573546,1742699357077,-500.0,0.00020209,2]
[356573547,1742699357100,-500.0,0.00020209,2]
[356573548,1742699357123,-500.0,0.00020209,2]
[356573549,1742699357146,-500.0,0.00020209,2]
[356573550,1742699357172,-500.0,0.00020209,2]
[356573551,1742699357194,-500.0,0.00020209,2]
[356573552,1742699357217,-500.0,0.00020209,2]
[356573553,1742699357238,-500.0,0.00020209,2]
[356573554,1742699357261,-500.0,0.00020209,2]